Cogmind - Beta 16.1 @@@ ROGUE MODE // 2026.02.27 @ 02:50:40 Player: cptwinky Result: Destroyed by 3G-B3X(R) with Subdweller Machine Gun Performance ------------- Evolutions (0) 0 Regions Visited (3) 600 Robots Destroyed (37) 185 Value Destroyed (1056) 1056 Prototype IDs (4) 80 Alien Tech Used (0) 0 Bonus (74) 74 TOTAL SCORE: 1995 Bonus ------- Follower Combat Kills 74 Cogmind --------- Core Integrity 0/250 Matter 225/300 Energy 198/200 System Corruption 0% Temperature Cool (0) Movement Walking (330) Ox3 Location -10/Subcaves Parts ------- > --- POWER (1) -------- Subdweller Power Source > --- PROPULSION (2) --- Aluminum Leg > --- UTILITY (2) ------ Large Storage Unit Makeshift Light Armor Plating > --- WEAPON (2) ------- Subdweller Machine Gun Subdweller Machine Gun > --- INVENTORY (15) --- Wheel Subdweller Monowheel Subdweller Monowheel Subdweller Monowheel Subdweller Monowheel Huge Storage Unit High-capacity Matter Pod (100) Seismic Detector Subdweller Beam Cannon Assault Rifle Assault Rifle Subdweller Machine Gun Makeshift Axe Peak State ------------ > --- POWER ------------ Subdweller Power Source > --- PROPULSION ------- Aluminum Leg Subdweller Monowheel > --- UTILITY ---------- Large Storage Unit Makeshift Light Armor Plating > --- WEAPON ----------- Subdweller Machine Gun Light Cannon > --- INVENTORY -------- Aluminum Leg Aluminum Leg Wheel Subdweller Monowheel Subdweller Monowheel Huge Storage Unit High-capacity Matter Pod High-capacity Matter Pod Seismic Detector Particle Gun Assault Rifle Assault Rifle Subdweller Machine Gun Subdweller Machine Gun Mining Claw [Rating: 15] Favorites ----------- Power Subdweller Power Source Engine Subdweller Power Source Power Core Light Nuclear Core Propulsion Light Treads Treads Light Treads Leg Aluminum Leg Wheel Subdweller Monowheel Utility Large Storage Unit Device Improved Heat Sink Storage Large Storage Unit Processor Armor Integrity Analyzer Protection Makeshift Light Armor Plating Weapon Light Cannon Energy Gun EM Pulse Gun Ballistic Gun Assault Rifle Ballistic Cannon Light Cannon Special Weapon Mining Laser Slashing Weapon Makeshift Axe Build | -11 -10 -10 -10 ------- Run | Yrd Mat Min Sub Slots Evolved . | . . . . Power . | . . . . Propulsion . | . . . . Utility . | . . . . Weapon . | . . . . Parts Attached 35 | 6 7 3 19 Power 5 | 1 1 . 3 Engine 4 | 1 1 . 2 Core 1 | . . . 1 Reactor . | . . . . Propulsion 9 | 2 . 1 6 Treads 4 | 2 . 1 1 Leg 4 | . . . 4 Wheel 1 | . . . 1 Hover . | . . . . Flight . | . . . . Utility 7 | 1 1 2 3 Device 3 | . . 2 1 Storage 2 | 1 1 . . Processor 1 | . . . 1 Hackware . | . . . . Protection 1 | . . . 1 Artifact . | . . . . Weapon 14 | 2 5 . 7 Energy Gun 1 | . 1 . . Energy Cannon . | . . . . Ballistic Gun 5 | 2 . . 3 Ballistic Cannon 5 | . 2 . 3 Launcher . | . . . . Special Weapon 1 | . 1 . . Impact Weapon . | . . . . Slashing Weapon 2 | . 1 . 1 Piercing Weapon . | . . . . Special Melee Weapon . | . . . . Unidentified Prototypes . | . . . . Parts Lost 13 | . . 1 12 Power 1 | . . . 1 Propulsion 6 | . . 1 5 Utility 1 | . . . 1 Weapon 5 | . . . 5 Highest Loss Streak 5 | . . 1 5 To Critical Strikes 1 | . . 1 . Average Backups 13 | 3 9 14 14 Power . | . 1 1 . Propulsion 3 | 1 3 3 4 Utility 3 | . 1 3 4 Weapon 5 | 1 3 7 6 Tool/Special . | . . . . Unused Backups 12 | . . 1 11 Power . | . . . . Propulsion 4 | . . . 4 Utility 4 | . . 1 3 Weapon 4 | . . . 4 Tool/Special . | . . . . Average Slot Usage (%) 97 | . 84 99 99 Engine 13 | . 14 14 13 Treads 18 | . 28 28 12 Leg 8 | . . . 12 Wheel 1 | . . . 2 Device 5 | . . 13 4 Storage 14 | . 14 14 14 Processor 2 | . . . 4 Protection 2 | . . . 4 Ballistic Gun 6 | . 22 . 5 Ballistic Cannon 19 | . 4 28 20 Slashing Weapon 1 | . . . 2 Peak Build Rating 15 | 6 7 10 15 Average Rating 10 | 5 6 9 12 On Entrance 5 | . 6 7 10 Avg Prop Armor Cover (%) 7 | . . . 7 Naked Turns . | . . . . Heaviest Build 36 | 12 31 32 36 Greatest Support 40 | 40 40 40 40 Greatest Overweight (x) 1 | . . . 1 Average Overweight (x) . | . . . . Largest Inventory Capacity 15 | 8 15 15 15 Average Capacity 14 | 7 13 15 15 Most Carried 15 | 7 15 15 15 Average Carried 13 | 3 9 14 14 Final Capacity 15 | 8 15 15 15 Final Carried 15 | 7 15 15 13 Class Distribution -------------------- 73% | Mutant 26% | Scavenger-Mutant Dominant Class ---------------- Mutant | -10/Materials Mutant | -10/Mines Mutant | -10/Subcaves Resources | -11 -10 -10 -10 ----------- Run | Yrd Mat Min Sub Matter Collected 1611 | 267 108 625 611 Remotely . | . . . . Salvage Created 845 | 36 125 249 435 Parts 68 | 3 15 13 37 Haulers Intercepted 1 | . 1 . . Recyclers Shooed 1 | 1 . . . Parts Field Recycled . | . . . . Retrieved Matter . | . . . . Parts Self-Destructed 15 | . . . 15 Prevented . | . . . . Parts Restored . | . . . . Kills | -11 -10 -10 -10 ------- Run | Yrd Mat Min Sub Combat Hostiles Destroyed 33 | . 6 7 20 Guns 11 | . 6 . 5 Cannons 21 | . . 7 14 Classes Destroyed 7 | 1 2 2 2 Tunneler 2 | 2 . . . Hauler 1 | . 1 . . Recycler 1 | . . 1 . Swarmer 11 | . 6 1 4 Grunt 8 | . . 6 2 Sentry 2 | . . . 2 Subdweller 12 | . . . 12 Best Kill Streak 4 | 2 3 3 4 Combat Bots Only 4 | . 3 3 4 Max Kills in Single Turn 1 | 1 1 1 1 Gunslinging . | . . . . Exploded . | . . . . Melee . | . . . . Uniques/NPCs Destroyed . | . . . . Combat | -11 -10 -10 -10 -------- Run | Yrd Mat Min Sub Hostile Shots Fired 195 | . 17 43 135 Missed 69 | . 7 16 46 Hits 126 | . 10 27 89 Projectile 126 | . 10 27 89 AOE 5 | . . . 5 Critical Strikes 3 | . . 1 2 Damage Taken 2173 | . 81 309 1783 Core 254 | . 12 35 207 Absorbed by Shields . | . . . . Core Remaining (%) 100 | 100 . . . Volleys Fired 101 | 3 14 18 66 Largest 2 | 2 2 2 2 Hottest 100 | 40 100 60 60 Shots Fired 198 | 6 25 36 131 Gun 64 | 6 24 . 34 Cannon 133 | . . 36 97 Launcher . | . . . . Special 1 | . 1 . . Kinetic 195 | 6 22 36 131 Thermal 1 | . 1 . . Explosive . | . . . . Electromagnetic 2 | . 2 . . Robot Hit Streak 15 | 1 4 5 15 Robot Miss Streak 3 | 1 2 3 3 Penetration Max . | . . . . Secondary Targets 1 | . . . 1 Max Gunslinging Chain 1 | . . . 1 Shots Hit Robots 123 | 3 11 19 90 Core Hits 53 | 3 8 10 32 Critical Kills . | . . . . Critical Parts Destroyed . | . . . . Critical Strikes 3 | . . 2 1 Blast 3 | . . 2 1 Melee Attacks 19 | . 3 . 16 Impact . | . . . . Slashing 19 | . 3 . 16 Piercing . | . . . . Sneak Attacks . | . . . . Combat Hostiles . | . . . . Follow-up Attacks . | . . . . Damage Inflicted 2314 | 36 175 411 1692 Guns 667 | 36 148 . 483 Cannons 1612 | . . 403 1209 Explosions . | . . . . Melee . | . . . . Ramming 35 | . 27 8 . Kinetic 2279 | 36 148 403 1692 Thermal . | . . . . Explosive . | . . . . Electromagnetic . | . . . . Impact . | . . . . Slashing . | . . . . Piercing . | . . . . Highest Corruption . | . . . . Average Corruption . | . . . . Corruption Purged . | . . . . Corruption Blocked . | . . . . Overload Shots . | . . . . Overflow Damage 2 | . . 2 . Projectiles 2 | . . 2 . Explosions . | . . . . Melee . | . . . . Knockbacks 24 | . . 7 17 Impact . | . . . . Kinetic 23 | . . 7 16 Secondary 1 | . . . 1 Self-Inflicted Damage . | . . . . Shots . | . . . . Rammed 3 | . 2 1 . Targets Rammed 3 | . 2 1 . Kicked . | . . . . Crushed . | . . . . Highest Temperature 30 | . 20 30 . Average Temperature 13 | . 12 13 . Received Heat Transfer 552 | . . 129 423 Siege Activations . | . . . . Martial Activations . | . . . . Shielding Activations . | . . . . Robots Disrupted . | . . . . Combat Hostiles . | . . . . Robots Corrupted . | . . . . Combat Hostiles . | . . . . Parts Fried . | . . . . Impact Corruptions . | . . . . Robots Melted . | . . . . Combat Hostiles . | . . . . Parts Melted . | . . . . Heat Transferred . | . . . . Parts Sabotaged . | . . . . Parts Stolen . | . . . . Parts Stripped . | . . . . Power Chain Reactions . | . . . . Alert | -11 -10 -10 -10 ------- Run | Yrd Mat Min Sub Maximum Alert Level . | . . . . Low Security (%) 100 | 100 100 100 . Level 1 . | . . . . Level 2 . | . . . . Level 3 . | . . . . Level 4 . | . . . . Level 5 . | . . . . High Security . | . . . . Max Security . | . . . . Peak Influence 121 | 5 70 121 . Initial . | . . . . Average 23 | . 12 35 . Influence Increases 702 | 10 158 289 245 Destroy 0b10 Robot/C 460 | . 120 180 160 Destroy 0b10 Robot/NC 20 | 10 5 5 . Destroy Leader 72 | . 22 40 10 Allied During Kill 19 | . . 19 . Successful Hack 11 | . 11 . . Disable Machine 45 | . . 45 . Lose Combat Pursuer 75 | . . . 75 Influence Decreases 671 | 10 158 272 231 Entered New Map 9 | . . . 9 Time Decay 614 | 10 158 262 184 Lost Part 40 | . . 10 30 Lost Ally 8 | . . . 8 Squads Dispatched . | . . . . Investigation . | . . . . Extermination . | . . . . Reinforcement . | . . . . Assault . | . . . . Garrison . | . . . . Intercept . | . . . . Searches Triggered . | . . . . Construction Impeded . | . . . . Haulers Reinforced . | . . . . Active Scanning Responses . | . . . . Cargo Convoy Interrupts . | . . . . Stealth | -11 -10 -10 -10 --------- Run | Yrd Mat Min Sub Distress Signals 2 | . 2 . . Communications Jammed . | . . . . Distress Signals . | . . . . Times Spotted 53 | . 16 9 28 Peak Tracking Total 5 | . 3 5 5 Tactical Retreats 4 | . . . 4 Traps | -11 -10 -10 -10 ------- Run | Yrd Mat Min Sub Traps Triggered . | . . . . Indirectly . | . . . . Trap Hack Attempts . | . . . . Triggered . | . . . . Disarmed . | . . . . Reprogrammed . | . . . . Reused . | . . . . Traps Extracted . | . . . . Installed . | . . . . Triggered . | . . . . Machines | -11 -10 -10 -10 ---------- Run | Yrd Mat Min Sub Machines Disabled 3 | . . 3 . Max in Single Turn 1 | . . 1 . Machines Repaired . | . . . . Machines Dismantled . | . . . . Machines Sabotaged . | . . . . Overloaded Fab Kills . | . . . . Hacking | -11 -10 -10 -10 --------- Run | Yrd Mat Min Sub Machines Accessed 4 | . 3 . 1 Terminals 2 | . 2 . . Fabricators . | . . . . Repair Stations 1 | . 1 . . Recycling Units . | . . . . Scanalyzers . | . . . . Garrison Access . | . . . . Total Hacks 11 | . 8 . 3 Successful 7 | . 4 . 3 Failed 3 | . 3 . . Catastrophic 1 | . 1 . . Database Lockouts 1 | . 1 . . Manual 2 | . 2 . . Terminals 7 | . 7 . . Fabricators . | . . . . Repair Stations 1 | . 1 . . Recycling Units . | . . . . Scanalyzers . | . . . . Garrison Access . | . . . . Terminal Hacks 7 | . 4 . 3 Record 3 | . . . 3 Robot Analysis 1 | . 1 . . Prototype ID Bank 2 | . 2 . . Zone Layout 1 | . 1 . . Fabricator Hacks . | . . . . Repair Station Hacks . | . . . . Recycling Unit Hacks . | . . . . Scanalyzer . | . . . . Garrison Access Hacks . | . . . . Unauthorized Hacks . | . . . . Terminals . | . . . . Fabricators . | . . . . Repair Stations . | . . . . Recycling Units . | . . . . Scanalyzers . | . . . . Garrison Access . | . . . . Data Cores Recovered . | . . . . Used . | . . . . Hacking Detections 2 | . 2 . . Full Trace Events . | . . . . Feedback Events . | . . . . Feedback Blocked . | . . . . Robot Schematics Acquired . | . . . . Robots Built . | . . . . Authchips . | . . . . Time . | . . . . Total Robot Build Rating . | . . . . Part Schematics Acquired . | . . . . Parts Built . | . . . . Authchips . | . . . . Time . | . . . . Total Part Build Rating . | . . . . Part Studies Acquired . | . . . . Parts Repaired . | . . . . Time . | . . . . Parts Recycled . | . . . . Recycled Matter . | . . . . Retrieved Matter . | . . . . Retrieved Components . | . . . . Parts Scanalyzed . | . . . . Part Schematics Acquired . | . . . . Parts Damaged . | . . . . Bothacking | -11 -10 -10 -10 ------------ Run | Yrd Mat Min Sub Used RIF Installer . | . . . . Robots Hacked . | . . . . Non-combat . | . . . . Combat . | . . . . Robot Hacks Applied . | . . . . Relay Couplers Released . | . . . . Fabnet Peak Effective % . | . . . . Robots Rewired . | . . . . Allies Hacked . | . . . . Hacks Repelled . | . . . . Allies | -11 -10 -10 -10 -------- Run | Yrd Mat Min Sub Total Allies 3 | . . 3 . Largest Group 3 | . . 3 3 Highest-Rated Group 40 | . . 40 40 Highest-Rated Ally 16 | . . 16 16 Total Orders . | . . . . Ally Attacks 40 | . . 23 17 Total Damage 421 | . . 212 209 Kills 4 | . . 2 2 Allies Corrupted . | . . . . Allies Melted . | . . . . Intel | -11 -10 -10 -10 ------- Run | Yrd Mat Min Sub Active Infowar (turns) 486 | . . . 486 Seismic 486 | . . . 486 Robot Analysis Total 1 | . 1 . . Derelict Logs Recovered 2 | . . 1 1 Drone Launches . | . . . . Drone Recoveries . | . . . . Exploration | -11 -10 -10 -10 ------------- Run | Yrd Mat Min Sub Turns Passed 4257 | 130 656 875 2596 Spaces Moved 2015 | 68 353 486 1108 Core 4 | 4 . . . Treads 1596 | 64 353 486 693 Legs 99 | . . . 99 Wheels 316 | . . . 316 Hover . | . . . . Flight . | . . . . Fastest Speed 50 | 50 160 160 120 Average Speed 174 | 153 160 160 187 Slowest Speed 240 | 160 160 160 240 Overloaded Moves . | . . . . Propulsion Burnouts . | . . . . Robots Hopped . | . . . . Potential Cave-ins . | . . . . Cave-ins Triggered . | . . . . Exploration Rate (%) 53 | 4 46 95 67 Regions Visited 3 Branch Regions 2 Pre-discovered Areas 2 | . . . 2 Known Exits Taken . | . . . . Unknown Exits Taken 3 | 1 1 1 . Scrap Searched . | . . . . Spaces Dug . | . . . . Terrain Destroyed . | . . . . Melee . | . . . . Projectile . | . . . . AOE . | . . . . Terrain Rammed . | . . . . Walls Destroyed . | . . . . Machines Disabled . | . . . . Actions | -11 -10 -10 -10 --------- Run | Yrd Mat Min Sub Total 2511 | 85 410 547 1469 Wait 273 | 2 15 35 221 Move 2012 | 67 352 485 1108 Hop . | . . . . Pick Up 36 | 7 8 3 18 Fast Attach 13 | 6 3 1 3 Attach 11 | . . 1 10 Detach 3 | . 3 . . Swap 23 | . 6 1 16 Drop 17 | . 4 2 11 Fire 101 | 3 14 18 66 Melee 19 | . 3 . 16 Ram . | . . . . Kick . | . . . . Crush 3 | . 2 1 . Escape Stasis . | . . . . Rewire . | . . . . Trap . | . . . . Miscellaneous . | . . . . Route ------- -11/Scrapyard -10/Materials (discovered 2 exits: [*Mat] / [*Min]) -10/Mines (discovered 2 exits: [*Mat] / *Sub) -10/Subcaves (discovered 2 exits: [*Mat x2]) History --------- Turn | Location | Event 2 | -11/Scrapyard | Met Revision 17 3 | -11/Scrapyard | Discovered new exit (range 15) 131 | -11/Scrapyard | Entered Materials 151 | -10/Materials | Central database locked down 159 | -10/Materials | Discovered new exit (range 16) 317 | -10/Materials | Build established: Mutant 559 | -10/Materials | Discovered new exit (range 5) 787 | -10/Materials | Entered Mines 964 | -10/Mines | Learned location of 1 exit from Materials 1249 | -10/Mines | Assisted by bots powering up and referring to "LRC-V3" 1395 | -10/Mines | Discovered new exit (range 11) 1649 | -10/Mines | Discovered new exit (range 5) 1662 | -10/Mines | Entered Subcaves 1662 | -10/Subcaves | Accompanied by 3 allies 1663 | -10/Subcaves | Approached by a straggling Scientist 1664 | -10/Subcaves | Ambushed by Subdwellers from Twisted Machinery 1901 | -10/Subcaves | Discovered new exit (range 5) 2031 | -10/Subcaves | Ambushed by swarm of Subdwellers 2115 | -10/Subcaves | Lost 5 parts (1p1n1u2w) 2388 | -10/Subcaves | Visited Clippyterm 2396 | -10/Subcaves | Learned location of Deep Caves (-7) 2470 | -10/Subcaves | Learned location of Zion (-7) 2608 | -10/Subcaves | Shifting Twisted Machinery released Mak. Light Armor Plating 2616 | -10/Subcaves | Shifting Twisted Machinery released Flamer 2688 | -10/Subcaves | A swath of the cavern ceiling suddenly collapsed 2825 | -10/Subcaves | Discovered new exit (range 6) 2912 | -10/Subcaves | Core integrity fell below 50% 3231 | -10/Subcaves | A swath of the cavern ceiling suddenly collapsed 3646 | -10/Subcaves | Build established: Scavenger-Mutant 3846 | -10/Subcaves | Shifting Twisted Machinery released Mak. Axe 3849 | -10/Subcaves | Shifting Twisted Machinery released Flamer 4192 | -10/Subcaves | A Subdweller sparked back to life 4244 | -10/Subcaves | Core integrity fell below 20% 4245 | -10/Subcaves | Ambushed by Subdweller buried in earth 4247 | -10/Subcaves | Ambushed by Subdweller buried in earth 4258 | -10/Subcaves | Destroyed by 3G-B3X(R) with Subdweller Machine Gun Last Messages --------------- 04045_ Acquired Hcp. Matter Pod. 04046_ Dropped Hcp. Matter Pod. 04079_ 1P-9J5(O) puts together Sub. Monowheel. 04089_ Acquired Sub. Monowheel. 04183_ Dropped Hcp. Matter Pod. 04183_ 1P-9J5(O) extracts matter from Hcp. Matter Pod. 04184_ Acquired Hcp. Matter Pod. 04192_ 7Q-GRR(R) creaks and sparks as it begins to move. 04208_ 7Q-GRR(R) knocked back. 04208_ 7Q-GRR(R) destroyed. 04217_ 0Q-1AV(R) destroyed. 04241_ U8-P88(R) knocked back. 04243_ Lgt. Cannon destroyed. 04246_ 3G-B3X(R): "GOODGOOD!" 04248_ WQ-48T(R): "NAT20!" 04248_ U8-P88(R) destroyed. 04248_ Lgt. Treads destroyed. 04253_ Aluminum Leg destroyed. 04255_ WQ-48T(R) destroyed. 04255_ Switching to secondary target: 3G-B3X(R). Map ----- +----------------------------------------------------+ | ??### #???????????????????????????????? ????? | | ?## ##???????????????????????????????# ????? | | ?# #???????????????????????????????# ##???? | | ## ##???????????????????????????????# #???? | | # #????????????????????????????????# ????? | | # #???????????????????????????????## ##???? | | #####??????????????????????????????## #???? | | #??????????????????????????????????# #????? | | ### ##?????????????????????????????????# ##???? | | #?# ##????????????????????????????????# #???? | | ### ###??????????????????????????????# ##??? | | ##?????????????????????????????# #### | | [ #?????????????????????????????# [ # | | #?????????????????????????????# # | | ##?????????????????????????????## # | | ##???????????????????????????????## ## # | | #####?????????????????????????????????# ### ## | | ##########?????####??????????????????## ####? | | # ## ##????# ##?######?????###### ##?? | | ##??## !### ####?##"# " #?? | | #?## ###""" " ##?? | | ## ### [ ## """"" ["##??? | | ### = & ## # ##|""##??? | | # #?### ##< # & #### " #??? | | ## #???### < [ =* ##??#"" /##?? | | ?###?????# # # @%! ########???#"" "### | | ?????????#""" !R] #?????????## """# | | ?????????#" < ###??????## ""# | | ?????????# & #### ## ### ??##### ## | | ????????# #??##### ##% #?# "" ##? | | ??????? #??????# ; # ## """ ####?? | | ?????? ######??????# ;;;## " ##????? | | ?????? ???????????## ### " #?????? | | ?????????????????### ##?# ##????? | | ?????????????????# ######??# !| ##???? | | ?????????????????# ##???????## #???? | | ?????????????????# ####?????????### ##???? | | ????????????????## ######???#####?# ##????? | | ????????????????# ## ##??# ### ###?????? | | ????????????????# ##?# ## ##???????? | | ????????????????# #??# ##????????? | | ????????????????### ##?## ##?????????? | | ???????????????#### #### ## ##??????????? | | ??????????????## ## #### ##???????????? | | ??????????????# ##?###????????????? | | ??????????????# ###??????????????? | | ??????????????##### #??????????????? | | ??????????????????# #??????????????? | | ??????????????????##### ##### ##??????????????? | | ??????????????????????#####????###???????????????? | +----------------------------------------------------+ Best States ------------- Heat Dissipation 39 Energy Generation 14 Energy Capacity 250 Matter Stores 300 Matter Capacity 300 Sight Range 16 Terrain Scan Density 10 Armor Coverage 100 Evasion (%) 40 Armor Integrity Analysis 30 Recoil Reduction 2 Item Schematics ----------------- None Robot Schematics ------------------ None Fabricated ------------ Nothing Repaired ---------- Nothing Studied --------- None Alien Tech Used ----------------- None Achievements -------------- None Challenges ------------ None Game ------ Seed DirtyLinearComputer Manual? 0 Play Time 00:21:54 Cumulative 2157.5 hours Start 2026.02.27 @ 02:35:32 End 2026.02.27 @ 02:50:40 Sessions 1 Manual Loads 0 Difficulty Rogue Special Mode None Game No. 1369 Rogue 1365 Adventurer 4 Explorer 0 Win Type - Total 302 Types 227/14/24/11/3/1/4/10/5/3 Lore% 98 Gallery% 96 Achievement% 89 Wizard Run 0 Options --------- Layout 2 ASCII 0 Keyboard 1 Movement Vi Keybinds 0 Fullscreen 0 Font 24/Terminus Map View 59x48 Zoom Use 0% Tactical HUD 1 Map Filters NONE Filters NONE Steam 1 RUN: 33cd740e-ef85-4541-a4a2-4d24b0d6af36